bitfinex/quotes_SOLUSD_20240821
["timestamp","ask_amount","ask_price","bid_price","bid_amount"]
[1724223647536,13.05,143.65,143.63,6.33959331]
[1724223647727,13.05,143.65,143.63,0.25098]
[1724223647929,13.05,143.65,143.63,6.33959331]
[1724223648128,13.05,143.65,143.63,0.25098]
[1724223648345,13.05,143.65,143.63,26.33959331]
[1724223648535,13.05,143.65,143.63,20.25098]
[1724223648755,13.05,143.65,143.63,6.08861331]
[1724223648955,13.05,143.65,143.62,6.08861331]
[1724223649125,13.05,143.63,143.61,16.18333043]
[1724223649939,13.05,143.63,143.6,100.0]
[1724223650149,15.9686,143.7,143.61,16.18940912]
[1724223650327,13.05,143.64,143.62,6.09090968]
[1724223650640,13.05,143.64,143.61,37.58180717]
[1724223650828,13.05,143.64,143.62,0.25098]
[1724223651646,13.05,143.64,143.62,0.12549]
[1724223657023,15.9686,143.7,143.62,0.12549]
[1724223657329,13.05,143.65,143.62,0.25098]
[1724223660729,13.05,143.65,143.62,1.64313353]
[1724223661143,15.9686,143.7,143.62,0.25098]
[1724223661352,13.05,143.66,143.62,0.25098]
[1724223665633,65.25,143.64,143.61,26.09052557]
[1724223665833,13.05,143.63,143.61,26.09052557]
[1724223666041,13.05,143.63,143.61,36.18792053]
[1724223666247,13.05,143.63,143.61,26.09052557]
[1724223666748,45.0,143.69,143.61,26.09052557]
[1724223667054,13.05,143.62,143.61,26.09052557]
[1724223667634,13.05,143.62,143.6,100.0]
[1724223668956,16.2173,143.64,143.6,100.0]
[1724223669135,13.05,143.62,143.6,100.0]
[1724223669654,13.05,143.62,143.61,0.25098]
[1724223673839,13.05,143.62,143.61,0.12549]
[1724223675677,13.05,143.62,143.6,100.0]
[1724223684173,13.05,143.62,143.6,22.611]
[1724223684174,45.0,143.61,143.6,22.611]
[1724223685976,97.2,143.61,143.52,6.09292601]
[1724223686168,97.2,143.61,143.51,23.47015833]
[1724223686169,13.05,143.53,143.51,23.47015833]
[1724223686379,13.05,143.53,143.51,16.19473027]
[1724223686689,13.05,143.53,143.51,6.09292601]
[1724223686877,13.05,143.55,143.51,6.09292601]
[1724223687596,13.05,143.55,143.52,20.25098]
[1724223687977,13.05,143.55,143.52,0.25098]
[1724223693209,13.05,143.57,143.52,0.25098]
[1724223696884,13.05,143.56,143.52,1.6440333]
[1724223698114,13.05,143.56,143.52,0.25098]
[1724223699397,13.05,143.54,143.51,20.0]
[1724223700817,13.05,143.54,143.52,0.12549]
[1724223707907,13.05,143.54,143.47,13.37027273]
[1724223708220,13.05,143.49,143.46,6.1122]
[1724223708610,13.05,143.52,143.47,1.39368131]
[1724223709421,13.05,143.52,143.48,0.25098]
[1724223710015,13.05,143.52,143.48,1.64461435]
[1724223710930,13.05,143.54,143.48,1.64461435]
[1724223711116,13.05,143.54,143.48,0.25098]
[1724223711713,13.05,143.54,143.48,1.64435604]
[1724223711909,13.05,143.54,143.48,0.25098]
[1724223712110,13.05,143.55,143.48,1.64435459]
[1724223715329,13.05,143.55,143.48,0.25098]
[1724223716017,13.05,143.55,143.48,15.36478]
[1724223716222,16.6386,143.57,143.49,21.39324889]
[1724223716423,13.05,143.56,143.5,0.25098]
[1724223718459,16.6386,143.57,143.5,0.25098]
[1724223718629,13.05,143.57,143.5,0.25098]
[1724223719427,15.5778,143.6,143.5,6.54928]
[1724223719614,13.05,143.59,143.51,20.0]
[1724223719832,13.05,143.59,143.52,0.25098]
[1724223720444,15.5778,143.6,143.52,0.25098]
[1724223720648,13.05,143.58,143.52,0.25098]
[1724223721434,15.5778,143.6,143.52,0.12549]
[1724223721435,13.05,143.56,143.52,0.12549]
[1724223721754,13.05,143.54,143.52,0.12549]
[1724223721951,13.05,143.54,143.51,0.12549]
[1724223722939,13.05,143.54,143.51,0.25098]
[1724223723472,13.05,143.55,143.51,0.25098]
[1724223726172,13.05,143.53,143.51,0.25098]
[1724223728546,13.05,143.53,143.51,6.34525799]
[1724223728849,13.05,143.53,143.51,0.25098]
[1724223729051,13.05,143.53,143.51,6.34525799]
[1724223729359,13.05,143.53,143.52,6.09427799]
[1724223729544,13.05,143.53,143.52,6.34525799]
[1724223730048,13.05,143.53,143.52,0.25098]
[1724223730436,13.05,143.53,143.52,6.34525724]
[1724223730643,13.05,143.53,143.52,0.25098]
[1724223730846,13.05,143.53,143.52,6.34525724]
[1724223731049,13.05,143.53,143.52,0.25098]
[1724223731249,13.05,143.53,143.52,6.34525724]
[1724223731439,13.05,143.53,143.52,0.25098]
[1724223731646,13.05,143.53,143.52,6.34525724]
[1724223731836,13.05,143.53,143.52,0.25098]
[1724223732037,13.05,143.53,143.52,6.34525724]
[1724223732237,13.05,143.53,143.52,0.25098]
[1724223732449,13.05,143.53,143.52,6.34525724]
[1724223732651,13.05,143.53,143.52,0.25098]
[1724223732863,13.05,143.53,143.52,6.34525724]
[1724223733152,13.05,143.53,143.52,0.25098]
[1724223733362,13.05,143.53,143.52,6.34525724]
[1724223733671,13.05,143.53,143.52,0.25098]
[1724223733838,13.05,143.53,143.52,6.34525724]
[1724223734034,13.05,143.53,143.51,6.09427724]
[1724223734265,13.05,143.53,143.5,0.12549]
[1724223734437,13.05,143.53,143.51,6.09427724]
[1724223734639,13.05,143.53,143.51,6.0946178]
[1724223735459,13.05,143.53,143.49,6.0946178]
[1724223735645,13.05,143.51,143.5,6.0946178]
[1724223735964,13.05,143.51,143.48,6.0946178]
[1724223736152,13.05,143.51,143.49,6.0946178]
[1724223736354,15.6855,143.55,143.5,6.0946178]
[1724223736549,13.05,143.52,143.47,6.429]
[1724223736748,13.05,143.52,143.48,16.45182698]
[1724223736950,13.05,143.52,143.49,6.0952438]
[1724223737247,13.05,143.52,143.5,7.73974026]
[1724223737456,13.05,143.52,143.5,1.64449646]
[1724223737654,13.05,143.52,143.5,7.73974026]
[1724223737967,13.05,143.52,143.5,1.64449646]
[1724223738149,13.05,143.52,143.5,7.73944597]
[1724223738348,13.05,143.52,143.5,0.25098]
[1724223738543,13.05,143.52,143.5,6.34592951]
[1724223738744,13.05,143.52,143.5,0.25098]
[1724223738954,15.6855,143.55,143.51,6.09494951]
[1724223739163,13.05,143.53,143.51,6.09494951]
[1724223740166,13.05,143.53,143.52,1.39342839]
[1724223740363,13.05,143.53,143.52,0.25098]
[1724223740753,13.05,143.53,143.48,20.0]
[1724223741162,13.05,143.53,143.49,0.25098]
[1724223743864,13.05,143.53,143.49,1.64442416]
[1724223744066,13.05,143.53,143.49,0.25098]
[1724223744951,13.05,143.53,143.49,6.34753887]
[1724223745367,13.05,143.53,143.5,6.0946144]
[1724223745669,13.05,143.53,143.51,0.25098]
[1724223746267,13.05,143.53,143.52,0.12549]
[1724223746465,13.05,143.53,143.5,0.25098]
[1724223746666,13.05,143.53,143.5,6.3455944]
[1724223746866,13.05,143.53,143.5,0.25098]
[1724223747055,13.05,143.53,143.5,6.3455944]
[1724223747254,13.05,143.53,143.5,0.25098]
[1724223747471,13.05,143.53,143.5,6.3455944]
[1724223747646,13.05,143.53,143.5,0.25098]
[1724223747847,13.05,143.53,143.5,6.3455944]
[1724223748049,13.05,143.53,143.5,0.25098]
[1724223748244,13.05,143.53,143.5,6.3455944]
[1724223748472,13.05,143.53,143.5,0.25098]
[1724223748673,13.05,143.53,143.5,6.34555506]
[1724223748875,13.05,143.53,143.5,0.25098]
[1724223749172,13.05,143.53,143.5,6.34555506]
[1724223749370,13.05,143.53,143.5,0.25098]
[1724223749551,13.05,143.53,143.5,6.34555506]
[1724223749747,13.05,143.53,143.5,0.25098]
[1724223750075,13.05,143.53,143.5,6.34555506]
[1724223750274,13.05,143.53,143.5,0.25098]
[1724223750471,13.05,143.53,143.5,6.34555506]
[1724223750670,13.05,143.53,143.5,0.25098]
[1724223750979,15.2974,143.59,143.51,19.144538]
[1724223751282,15.4808,143.63,143.52,34.13078652]
[1724223751461,13.05,143.62,143.53,19.144538]
[1724223751654,15.4808,143.63,143.55,29.0695]
[1724223751850,9.55722484,143.67,143.56,27.73801602]
[1724223751851,25.03802484,143.67,143.56,27.73801602]
[1724223752056,13.05,143.65,143.56,27.73801602]
[1724223752254,25.03802484,143.67,143.57,6.094538]
[1724223754678,13.05,143.63,143.58,0.25098]
[1724223756082,25.03802484,143.67,143.58,0.25098]
[1724223756279,45.0,143.66,143.58,0.25098]
[1724223756486,13.05,143.63,143.58,0.25098]
[1724223756698,13.05,143.63,143.58,1.64348656]
[1724223759767,13.05,143.63,143.58,0.25098]
[1724223761876,13.05,143.63,143.58,1.64344792]
[1724223762060,45.0,143.66,143.58,1.64344792]
[1724223762265,13.05,143.65,143.58,8.14844792]
[1724223762673,13.05,143.65,143.59,20.0]
[1724223762874,13.05,143.65,143.6,1.64329415]
[1724223763079,13.05,143.65,143.61,1.39232475]
[1724223763279,13.05,143.65,143.62,0.25098]
[1724223763872,15.4808,143.67,143.62,0.25098]
[1724223764187,13.05,143.65,143.62,0.25098]
[1724223776883,13.05,143.63,143.62,0.12549]
[1724223777084,13.05,143.63,143.59,20.0]
[1724223777284,15.4808,143.67,143.6,0.25098]
[1724223777590,45.0,143.66,143.6,0.25098]
[1724223779785,13.05,143.63,143.6,0.25098]
[1724223781206,15.4808,143.67,143.6,1.64344126]
[1724223781398,12.33176267,143.71,143.6,1.64344126]
[1724223781399,13.05,143.66,143.6,18.01524126]
[1724223781612,13.05,143.68,143.6,16.62278]
[1724223781914,13.05,143.68,143.61,20.0]
[1724223782087,13.05,143.68,143.62,0.25098]
[1724223782394,13.05,143.66,143.62,0.25098]
[1724223785906,13.05,143.66,143.62,1.64308194]
[1724223787007,13.05,143.66,143.62,0.25098]
[1724223788986,16.4143,143.71,143.62,0.25098]
[1724223789192,13.05,143.67,143.62,0.25098]
[1724223790113,13.05,143.67,143.63,6.4646]
[1724223790408,13.05,143.67,143.64,0.25098]
[1724223794509,16.4143,143.71,143.64,0.25098]
[1724223794812,13.05,143.67,143.64,0.25098]
[1724223798491,13.05,143.65,143.64,0.25098]
[1724223801321,13.05,143.67,143.64,0.25098]
[1724223806031,13.05,143.65,143.64,0.25098]
[1724223809825,13.05,143.67,143.64,1.64315516]
[1724223810514,13.05,143.67,143.64,0.25098]
[1724223823436,13.05,143.67,143.64,6.34035344]
[1724223824334,13.05,143.67,143.65,6.08937344]
[1724223824532,13.05,143.67,143.66,0.25098]
[1724223825145,14.52164061,143.75,143.66,0.25098]
[1724223825349,14.52164061,143.75,143.67,6.34035344]
[1724223825350,13.05,143.7,143.67,6.34035344]
[1724223825546,13.05,143.7,143.67,6.21486344]
[1724223825723,13.05,143.7,143.68,0.12549]
[1724223826328,13.05,143.7,143.67,0.25098]
[1724223826522,13.05,143.7,143.66,6.34035344]
[1724223826725,13.05,143.7,143.68,0.12549]
[1724223826948,13.05,143.7,143.66,0.25098]
[1724223826949,13.05,143.7,143.66,6.34035344]
[1724223827152,13.05,143.7,143.67,6.08937344]
[1724223827449,13.05,143.7,143.68,0.25098]
[1724223828146,13.05,143.7,143.69,0.25098]
[1724223828330,65.25,143.71,143.67,0.25098]
[1724223828533,13.05,143.68,143.67,0.25098]
[1724223828766,13.05,143.68,143.67,0.12549]
[1724223828936,13.05,143.68,143.66,0.25098]
[1724223829132,13.05,143.68,143.65,6.08937344]
[1724223829334,13.05,143.66,143.63,6.08937344]
[1724223829635,16.5445,143.7,143.61,6.08937344]
[1724223829846,45.0,143.69,143.6,6.08937344]
[1724223830149,13.05,143.65,143.61,6.08937344]
[1724223830457,13.05,143.65,143.6,6.08937344]
[1724223830635,13.05,143.65,143.61,6.34035344]
[1724223830835,13.05,143.65,143.61,0.25098]
[1724223831931,13.05,143.65,143.6,26.09082851]
[1724223833155,13.05,143.65,143.61,0.25098]
[1724223837264,13.05,143.65,143.61,6.34180797]
[1724223838761,13.05,143.65,143.61,0.25098]
[1724223838937,13.05,143.65,143.61,6.34121595]
[1724223841242,13.05,143.65,143.61,0.25098]
[1724223841841,13.05,143.65,143.61,6.3412499]
[1724223842038,13.05,143.65,143.61,0.25098]
[1724223845935,16.5445,143.7,143.61,0.25098]
[1724223846141,13.05,143.65,143.61,0.25098]
[1724223846341,13.05,143.65,143.61,6.34125088]
[1724223848343,45.0,143.69,143.61,6.34125088]
[1724223848560,13.05,143.65,143.61,6.34125088]
[1724223848942,45.0,143.69,143.61,6.34125088]
[1724223849143,13.05,143.65,143.61,6.34125088]
[1724223849746,13.05,143.65,143.61,0.25098]
[1724223862575,45.0,143.69,143.6,26.09057056]
[1724223862576,13.05,143.63,143.6,6.09057056]
[1724223862780,13.05,143.61,143.58,7.26850523]
[1724223862977,13.05,143.61,143.56,6.09057056]
[1724223863165,13.05,143.61,143.57,6.09057056]
[1724223863371,13.05,143.61,143.56,6.09057056]
[1724223863567,13.05,143.61,143.57,6.09057056]
[1724223863770,13.05,143.61,143.56,6.09057056]
[1724223863970,13.05,143.61,143.57,6.34155056]
[1724223864171,13.05,143.61,143.57,0.25098]
[1724223864373,13.05,143.61,143.57,6.34155056]
[1724223864565,13.05,143.61,143.57,0.25098]
[1724223864765,13.05,143.61,143.57,20.25098]
[1724223866767,52.2,143.64,143.57,20.25098]
[1724223866973,13.05,143.61,143.58,1.39257302]
[1724223867170,13.05,143.61,143.59,0.25098]
[1724223867578,13.05,143.61,143.58,0.12549]
[1724223867778,13.05,143.61,143.58,0.25098]
[1724223874198,13.05,143.61,143.58,6.34244563]
[1724223874496,13.05,143.61,143.58,0.25098]
[1724223875193,13.05,143.61,143.58,6.34244563]
[1724223876371,13.05,143.62,143.59,7.48411319]
[1724223876583,13.05,143.62,143.6,0.25098]
[1724223877184,13.05,143.62,143.61,0.25098]
[1724223877475,13.05,143.62,143.59,0.25098]
[1724223879788,13.05,143.64,143.59,0.25098]
[1724223880582,13.05,143.64,143.59,7.734875]
[1724223880782,13.05,143.64,143.59,1.64340937]
[1724223881001,13.05,143.64,143.59,33.955475]
[1724223881190,13.05,143.64,143.59,7.86400937]
[1724223881386,13.05,143.64,143.59,12.56304563]
[1724223881693,13.05,143.64,143.59,6.47158]
[1724223882214,13.05,143.64,143.6,6.09061145]
[1724223882382,13.05,143.64,143.61,0.12549]
[1724223882583,13.05,143.64,143.61,0.25098]
[1724223885205,13.05,143.64,143.61,1.64332447]
[1724223885508,13.05,143.64,143.61,0.25098]
[1724223886614,13.05,143.65,143.61,0.25098]
[1724223886778,15.0531,143.69,143.61,0.25098]
[1724223887107,13.05,143.67,143.62,6.09053258]
[1724223887307,13.05,143.67,143.63,0.25098]
[1724223887906,13.05,143.67,143.63,6.34151258]
[1724223888102,13.05,143.67,143.63,0.25098]
[1724223891493,13.05,143.67,143.62,0.25098]
[1724223893891,13.05,143.67,143.62,1.64307482]
[1724223894280,13.05,143.67,143.62,26.34028716]
[1724223894708,13.05,143.67,143.62,36.43616004]
[1724223894910,13.05,143.67,143.63,1.39206156]
[1724223895103,13.05,143.67,143.64,0.25098]
[1724223895614,13.05,143.67,143.63,0.25098]
[1724223896698,13.05,143.65,143.63,0.25098]
[1724223896896,13.05,143.65,143.62,0.25098]
[1724223900447,13.05,143.67,143.62,0.25098]
[1724223901747,13.05,143.68,143.62,1.64312633]
[1724223902250,13.05,143.68,143.62,0.25098]
[1724223903046,13.05,143.68,143.62,1.64295561]
[1724223903226,13.05,143.68,143.63,6.0099]
[1724223903559,13.05,143.68,143.64,21.64285144]
[1724223903726,13.05,143.68,143.65,1.39187351]
[1724223903928,13.05,143.68,143.66,0.25098]
[1724223904457,13.05,143.7,143.66,0.25098]
[1724223905250,13.05,143.7,143.65,0.25098]
[1724223905933,13.05,143.68,143.65,0.25098]
[1724223916032,52.2,143.71,143.65,0.25098]
[1724223916033,13.05,143.66,143.65,0.25098]
[1724223925375,52.2,143.71,143.65,0.25098]
[1724223925742,13.05,143.68,143.65,0.25098]
[1724223925941,13.05,143.68,143.64,1.6430417]
[1724223926157,13.05,143.68,143.65,1.39206293]
[1724223926347,13.05,143.68,143.66,0.25098]
[1724223926545,13.05,143.7,143.64,0.25098]
[1724223926853,13.05,143.7,143.67,0.12549]
[1724223927054,13.05,143.68,143.64,20.25098]
[1724223927567,13.05,143.68,143.64,26.3405407]
[1724223927755,13.05,143.68,143.64,20.25098]
[1724223927959,13.05,143.68,143.64,26.3405407]
[1724223928151,13.05,143.68,143.64,20.25098]
[1724223928464,13.05,143.68,143.64,26.34016567]
[1724223928661,13.05,143.68,143.64,20.25098]
[1724223928858,13.05,143.68,143.64,26.34016567]
[1724223929060,13.05,143.68,143.64,20.25098]
[1724223929260,13.05,143.68,143.64,26.34016567]
[1724223929446,13.05,143.68,143.64,20.25098]
[1724223929642,13.05,143.68,143.64,26.34020265]
[1724223929852,13.05,143.68,143.64,20.25098]
[1724223930053,13.05,143.68,143.64,26.34020265]
[1724223930264,13.05,143.68,143.64,20.25098]
[1724223930462,13.05,143.68,143.64,26.34020265]
[1724223930645,13.05,143.68,143.64,20.25098]
[1724223930845,13.05,143.68,143.64,26.34020265]
[1724223931044,13.05,143.68,143.64,20.25098]
[1724223931346,13.05,143.68,143.65,6.08922265]
[1724223931551,13.05,143.68,143.66,0.25098]
[1724223936355,13.05,143.68,143.65,0.25098]
[1724223936560,13.05,143.68,143.66,0.12549]
[1724223936755,13.05,143.68,143.65,6.08918407]
[1724223936953,13.05,143.68,143.66,0.25098]
[1724223937772,13.05,143.68,143.67,0.25098]
[1724223937969,13.05,143.68,143.65,0.25098]
[1724223938176,13.05,143.68,143.65,6.34016484]
[1724223938357,13.05,143.68,143.65,0.25098]
[1724223938551,13.05,143.68,143.65,6.34016484]
[1724223938746,13.05,143.68,143.65,0.25098]
[1724223938969,13.05,143.68,143.65,6.34016484]
[1724223939164,13.05,143.68,143.65,0.25098]
[1724223939483,13.05,143.68,143.65,6.34016484]
[1724223939662,13.05,143.68,143.65,0.25098]
[1724223939851,13.05,143.68,143.65,6.34016484]
[1724223940172,13.05,143.68,143.65,0.25098]
[1724223940376,13.05,143.68,143.65,6.34016484]
[1724223940573,13.05,143.68,143.65,0.25098]
[1724223940769,13.05,143.68,143.65,6.34016484]
[1724223940952,13.05,143.68,143.65,0.25098]
[1724223941276,15.3921,143.73,143.65,6.34016484]
[1724223941451,13.05,143.67,143.65,0.25098]
[1724223941655,13.05,143.67,143.65,6.34016484]
[1724223941852,13.05,143.67,143.65,0.25098]
[1724223942067,13.05,143.67,143.65,6.34016484]
[1724223942374,13.05,143.67,143.65,0.25098]
[1724223942555,13.05,143.67,143.65,6.34016484]
[1724223942756,13.05,143.67,143.65,0.25098]
[1724223942956,13.05,143.67,143.65,6.34016484]
[1724223943157,13.05,143.67,143.65,0.25098]
[1724223943358,13.05,143.67,143.65,6.34016484]
[1724223943558,13.05,143.67,143.65,0.25098]
[1724223943769,13.05,143.67,143.65,6.34016484]
[1724223943974,13.05,143.67,143.65,0.25098]
[1724223944168,13.05,143.67,143.65,6.34016484]
[1724223944364,13.05,143.67,143.65,0.25098]
[1724223944570,13.05,143.67,143.65,6.34016607]
[1724223944759,15.3921,143.73,143.65,0.25098]
[1724223944958,13.05,143.68,143.65,6.34016607]
[1724223945273,13.05,143.68,143.65,0.25098]
[1724223945480,13.05,143.68,143.66,6.08892547]
[1724223945682,15.3921,143.73,143.67,1.64289299]
[1724223945880,13.05,143.71,143.68,1.39173836]
[1724223946093,13.05,143.71,143.69,0.25098]
[1724223946575,15.3921,143.73,143.69,0.25098]
[1724223946774,13.05,143.71,143.69,0.25098]
[1724223947274,15.7623,143.77,143.69,0.25098]
[1724223947474,13.05,143.71,143.69,0.25098]
[1724223949489,13.05,143.73,143.69,1.64254046]
[1724223950179,13.05,143.73,143.69,0.25098]
[1724223952682,15.7623,143.77,143.69,0.25098]
[1724223952683,13.05,143.71,143.69,0.25098]
[1724223953070,52.2,143.78,143.69,1.6424297]
[1724223953364,34.16577895,143.89,143.69,1.6424297]
[1724223953365,16.0075,143.86,143.71,20.0]
[1724223953555,16.0075,143.86,143.74,15.2491]
[1724223953754,16.0075,143.86,143.75,66.64164314]
[1724223953755,13.05,143.8,143.75,66.64164314]
[1724223955358,13.05,143.8,143.76,1.39068546]
[1724223955675,13.05,143.8,143.77,0.25098]
[1724223955864,13.05,143.8,143.77,1.64167575]
[1724223956265,13.05,143.8,143.77,0.25098]
[1724223956475,13.05,143.8,143.76,0.25098]
[1724223959761,52.2,143.85,143.77,6.4194]
[1724223959962,13.05,143.81,143.78,20.25098]
[1724223960590,13.05,143.81,143.79,1.39064118]
[1724223960884,13.05,143.81,143.8,0.25098]
[1724223961476,13.05,143.81,143.79,0.25098]
[1724223963064,52.2,143.85,143.79,0.25098]
[1724223963263,52.2,143.85,143.79,1.64144519]
[1724223963559,13.05,143.82,143.79,1.64144519]
[1724223964185,52.2,143.85,143.79,1.64144519]
[1724223964381,13.05,143.81,143.79,1.64144519]
[1724223964706,0.8527969,143.9,143.8,22.4796]
[1724223964866,13.05,143.84,143.81,20.25098]
[1724223967100,0.8527969,143.9,143.81,20.25098]
[1724223967267,13.05,143.84,143.81,20.25098]
[1724223967770,13.05,143.85,143.81,20.25098]
[1724223969297,0.8527969,143.9,143.82,1.39013946]
[1724223969590,13.05,143.86,143.83,1.64095308]
[1724223971769,13.05,143.86,143.83,0.25098]
[1724223971977,13.05,143.86,143.83,1.39004184]
[1724223972292,13.05,143.86,143.84,0.25098]
[1724223975209,13.05,143.85,143.84,0.25098]
[1724223975802,13.05,143.85,143.83,0.25098]
[1724223976182,0.8527969,143.9,143.84,6.4519]
[1724223976388,13.05,143.87,143.85,1.64085503]
[1724223976683,13.05,143.87,143.85,0.25098]
[1724223978718,13.05,143.87,143.85,1.64103821]
[1724223979022,13.05,143.87,143.85,0.25098]
[1724223980505,13.05,143.87,143.85,1.64100535]
[1724223981214,13.05,143.87,143.85,0.25098]
[1724223982898,13.05,143.87,143.85,1.64095647]
[1724223983109,13.05,143.87,143.85,0.25098]
[1724223998426,0.8527969,143.9,143.85,0.25098]
[1724223998623,13.05,143.87,143.85,0.25098]
[1724224000429,0.8527969,143.9,143.85,0.25098]
[1724224000611,13.05,143.88,143.85,0.25098]
[1724224003824,13.05,143.86,143.85,0.25098]
[1724224010949,13.05,143.86,143.83,26.0789576]
[1724224010950,13.05,143.86,143.84,0.25098]
[1724224014939,13.05,143.86,143.83,6.33090775]
[1724224015148,13.05,143.86,143.84,20.0]
[1724224015342,13.05,143.86,143.85,1.64102969]
[1724224015553,13.05,143.88,143.85,1.64102969]
[1724224015753,13.05,143.88,143.86,1.38994845]
[1724224015935,13.05,143.88,143.87,0.25098]
[1724224017269,13.05,143.88,143.86,0.25098]
[1724224017634,13.05,143.88,143.87,0.25098]
[1724224017855,13.05,143.88,143.85,20.25098]
[1724224018359,13.05,143.88,143.86,20.0]
[1724224018556,13.05,143.88,143.87,0.25098]
[1724224019536,0.8527969,143.9,143.87,0.25098]
[1724224020046,0.8527969,143.9,143.87,45.25098]
[1724224020255,0.8527969,143.9,143.88,20.0]
[1724224020447,0.8527969,143.9,143.89,1.64042546]
[1724224021247,0.8527969,143.9,143.89,0.25098]
[1724224022771,0.6018169,143.9,143.89,0.25098]
[1724224024656,0.3508369,143.9,143.89,0.25098]
[1724224024969,0.3508369,143.9,143.89,45.25098]
[1724224025181,0.3508369,143.9,143.89,20.25098]
[1724224025492,0.3508369,143.9,143.89,65.25098]
[1724224025859,0.3508369,143.9,143.89,20.25098]
[1724224026167,0.0998569,143.9,143.89,20.25098]
[1724224026380,0.0998569,143.9,143.89,85.25098]
[1724224027767,0.0998569,143.9,143.89,65.25098]
[1724224027946,15.1201,143.98,143.9,6.1822]
[1724224028151,13.05,143.97,143.91,86.38899578]
[1724224028959,13.05,143.97,143.91,85.0]
[1724224029155,13.05,143.97,143.92,0.12549]
[1724224030053,13.05,143.97,143.92,0.25098]
[1724224031355,52.2,143.99,143.91,20.0]
[1724224031356,13.05,143.93,143.91,20.0]
[1724224032650,13.05,143.93,143.92,0.25098]
[1724224032851,0.149,144.0,143.92,0.25098]
[1724224033061,13.05,143.95,143.92,0.25098]
[1724224033774,52.2,143.99,143.92,0.25098]
[1724224033974,13.05,143.95,143.92,0.25098]
[1724224037082,0.149,144.0,143.92,0.25098]
[1724224037303,13.05,143.95,143.92,0.25098]
[1724224038495,52.2,143.99,143.92,1.64018872]
[1724224038803,0.149,144.0,143.92,45.25098]
[1724224038990,13.05,143.96,143.93,20.0]
[1724224039297,13.05,143.96,143.94,0.25098]
[1724224043381,13.05,143.96,143.94,0.12549]
[1724224047402,13.05,143.96,143.91,20.0]
[1724224047578,13.05,143.92,143.9,20.0]
[1724224048786,13.05,143.92,143.91,0.25098]
[1724224050786,65.25,143.92,143.89,7.2655425]
[1724224051016,13.05,143.9,143.83,22.3139]
[1724224051189,13.05,143.87,143.86,7.26902345]
[1724224051693,13.05,143.87,143.85,7.26952021]
[1724224052688,13.05,143.87,143.86,20.0]
[1724224053098,13.05,143.87,143.85,7.26952021]
[1724224053981,13.05,143.87,143.8,17.00555698]
[1724224054183,67.2009,143.92,143.82,7.27102207]
[1724224054381,13.05,143.83,143.82,7.27102207]
[1724224055187,13.05,143.83,143.82,27.39651207]
[1724224055889,13.05,143.83,143.82,27.52200207]
[1724224060195,13.05,143.84,143.82,27.52200207]
[1724224060391,13.05,143.84,143.83,20.25098]
[1724224061608,13.05,143.84,143.83,0.12549]
[1724224062012,13.05,143.85,143.83,0.12549]
[1724224067306,65.25,143.85,143.83,0.12549]